Workbook

Sheet Angle-triangle
E2: Coordonnées des points
F3: x | G3: y
E4: A | F4: 5 | G4: 1
E5: B | F5: 0 | G5: 1
E6: C | F6: 7 | G6: 6
F7: =F4 -> 5 | G7: =G4 -> 1
A12: Distances : | E12: Vecteur | F12: x | G12: y
A13: a=BC | B13: =SQRT( POWER(F6-F5,2) + POWER(G6-G5,2) ) -> 8.602325267 | E13: OA | F13: =F4-F5 -> 5 | G13: =G4-G5 -> 0
A14: b=AC | B14: =SQRT( POWER(F6-F4,2) + POWER(G6-G4,2) ) -> 5.385164807 | E14: OB | F14: =F6-F5 -> 7 | G14: =G6-G5 -> 5
A15: c=AB | B15: =SQRT( POWER(F5-F4,2) + POWER(G5-G4,2) ) -> 5 | E15: AB | F15: =F6-F4 -> 2 | G15: =G6-G4 -> 5
A17: Angles : | B17: rad | C17: deg | E17: Aire
A18: γ=ACB | B18: =ACOS( (B13*B13+B14*B14-B15*B15)/(2*B13*B14) ) -> 0.5700404637 | C18: =B18*180/PI() -> 32.66091272 | E18: OAB | F18: =SQRT( (B14+B13+B15)/2 * ((B14+B13+B15)/2-B14) * ((B14+B13+B15)/2-B13) * ((B14+B13+B15)/2-B15) ) -> 12.5
A19: b=ABC | B19: =ACOS( (B13*B13+B15*B15-B14*B14)/(2*B13*B15) ) -> 0.620249486 | C19: =B19*180/PI() -> 35.53767779
A20: a=CAB | B20: =ACOS( (B14*B14+B15*B15-B13*B13)/(2*B14*B15) ) -> 1.951302704 | C20: =B20*180/PI() -> 111.8014095

Sheet Rayon de courbure
G2: Somme des angles dans triangle OAB:
G3: a/2 + b/2 = 90° <=> a + b = 180°
G5: => | H5: xB = (-)R.sin(a/2)
H6: yB = R
G8: => | H8: xA' = (-)R.sin(a)
H9: yA' = R.cos(a)
A17: Somme des angles dans triangle OAB:
A18: a + b = 90°
A20: => | B20: xA = R.sin(a)
B21: yA = R.cos(a)
A23: => | B23: Dh = R [ 1/sin(a) - 1 ]
A25: => | B25: AB = R / tan(a)
A27: => | B27: DS = R² [ 1/tan(a) - p/2 + a ]

Sheet Surface-corroyage
O1: RD | S1: CAA | W1: OCTO | AA1: RECT | AE1: LOS | AI1: OV | AM1: FxR | AQ1: KOCKS
B2: Section d'entrée | H2: Section de sortie | N2: param1 | O2: Diamètre, Ø= | P2: 320 | Q2: 267 | S2: Hauteur, h= | T2: 370 | U2: 370 | W2: Hauteur, h= | X2: 320 | Y2: 900 | AA2: Hauteur, h= | AB2: 700 | AC2: 10 | AE2: Hauteur, h= | AF2: 95.54 | AG2: 95.54 | AI2: Hauteur, h= | AJ2: 62 | AK2: 12 | AM2: h= | AN2: 27 | AO2: 14 | AQ2: Ht. sous galet, h= | AR2: 11.85853574 | AS2: 16
N3: param2 | O3: - | S3: Diagonale, d= | T3: =1.25*E5 -> 400 | U3: =1.25*K5 -> 333.75 | W3: - | AA3: Largeur, l= | AB3: 500 | AC3: 10 | AE3: Largeur, l= | AF3: 131.5 | AG3: 131.5 | AI3: Largeur, l= | AJ3: 88.3379 | AM3: l= | AN3: 78.38 | AQ3: Ht. bord libre, l= | AR3: =E5 -> 320 | AS3: =K5 -> 267
N4: param3 | O4: - | S4: - | W4: - | AA4: Courbure, r= | AB4: 10 | AE4: Courbure, r= | AF4: 5 | AG4: 5 | AI4: - | AM4: R1= | AN4: 70 | AQ4: -
D5: Diamètre, Ø= | E5: 320 | J5: Diamètre, Ø= | K5: 267 | N5: param4 | O5: - | S5: - | W5: - | AA5: - | AE5: - | AI5: - | AM5: - | AQ5: -
D6: - | J6: - | N6: param5 | O6: - | S6: - | W6: - | AA6: - | AE6: - | AM6: - | AQ6: -
D7: - | J7: - | N7: dim1 | O7: Rayon, r= | P7: =$E$5/2 -> 160 | Q7: =$K$5/2 -> 133.5 | S7: Côté, a= | T7: =SQRT(2)*$E$6 - $E$5 -> -320 | U7: =SQRT(2)*$K$6 - $K$5 -> -267 | W7: Côté, a= | X7: =$E$5/(1+SQRT(2)) -> 132.54834 | Y7: =$K$5/(1+SQRT(2)) -> 110.5950212 | AA7: - | AE7: alpha= | AF7: =ATAN( ($E$6/2-$E$7)/($E$5/2-$E$7) ) -> 0 | AG7: =ATAN( ($K$6/2-$K$7)/($K$5/2-$E$7) ) -> 0 | AH7: rad | AI7: Ramanujan ,P≈ | AJ7: =1.5*PI()*($E$5+$E$6) - 0.5*PI()*SQRT((3*$E$5+$E$6)*($E$5+3*$E$6)) -> 637.3407789 | AK7: =1.5*PI()*($K$5+$K$6) - 0.5*PI()*SQRT((3*$K$5+$K$6)*($K$5+3*$K$6)) -> 531.7812124 | AM7: R2= | AN7: =$E$5/2 + 0.25*POWER($E$5-$E$6,2)/($E$6-2*$E$7) ->  | AO7: =$K$5/2 + 0.25*POWER($K$5-$K$6,2)/($K$6-2*$K$7) ->  | AQ7: côté sous galet, ah= | AR7: =SQRT(3) * (2*$E$6-$E$5) /3 -> -184.7520861 | AS7: =SQRT(3) * (2*$K$6-$K$5) /3 -> -154.1525219
D8: - | J8: - | N8: dim2 | O8: - | S8: Côté, b= | T8: =SQRT(2)*$E$5 - $E$6 -> 452.54834 | U8: =SQRT(2)*$K$5 - $K$6 -> 377.5950212 | W8: - | AA8: - | AE8: alpha= | AF8: =180*$E$12/PI() -> 9167.324722 | AG8: =180*$K$12/PI() -> 7648.986565 | AH8: deg | AM8: alpha= | AN8: =ATAN( ($E$5/2-$E$7)/($E$12-$E$6/2) ) -> 0.7853981634 | AO8: =ATAN( ($K$5/2-$K$7)/($K$12-$K$6/2) ) -> 0.7853981634 | AP8: rad | AQ8: bord libre, al= | AR8: =SQRT(3) * (2*$E$5-$E$6) /3 -> 369.5041723 | AS8: =SQRT(3) * (2*$K$5-$K$6) /3 -> 308.3050437
D9: - | J9: - | N9: dim3 | O9: - | S9: - | W9: - | AA9: - | AE9: épaisseur, e= | AF9: =2*$E$7 + ($E$5-2*$E$7)*SIN($E$12) -> 70.21608268 | AG9: =2*$K$7 + ($K$5-2*$E$7)*SIN($K$12) -> 266.9582346 | AI9: - | AM9: beta= | AN9: =ATAN( ($E$7/$E$12) * ($E$5/2-$E$7)/($E$12-$E$6/2) ) -> 0 | AO9: =ATAN( ($K$7/$K$12) * ($K$5/2-$K$7)/($K$12-$K$6/2) ) -> 0 | AP9: rad | AQ9: -
N10: dim4 | O10: - | S10: - | W10: - | AA10: - | AE10: - | AI10: - | AM10: xT= | AN10: =$E$7*COS($E$13) -> 0 | AO10: =$K$7*COS($K$13) -> 0 | AQ10: -
N11: dim5 | O11: - | S11: - | W11: - | AA11: - | AE11: - | AI11: - | AM11: yT= | AN11: =$E$7*SIN($E$13) -> 0 | AO11: =$K$7*SIN($K$13) -> 0 | AQ11: -
D12: Rayon, r= | E12: =$E$5/2 -> 160 | J12: Rayon, r= | K12: =$K$5/2 -> 133.5 | N12: P= | P12: =PI()*$E$5 -> 1005.309649 | Q12: =PI()*$K$5 -> 838.8052385 | T12: =4*($E$5+$E$6) -> 1280 | U12: =4*($K$5+$K$6) -> 1068 | X12: =8*$E$12 -> 1280 | Y12: =8*$K$12 -> 1068 | AB12: =2*($E$5+$E$6) - (8-2*PI())*$E$7 -> 640 | AC12: =2*($K$5+$K$6) - (8-2*PI())*$K$7 -> 534 | AF12: =4*SQRT( POWER($E$5/2-$E$7,2) + POWER($E$6/2-$E$7,2) )+ 2*PI()*$E$7 -> 640 | AG12: =4*SQRT( POWER($K$5/2-$K$7,2) + POWER($K$6/2-$K$7,2) )+ 2*PI()*$K$7 -> 534 | AJ12: =$E$12 -> 160 | AK12: =$K$12 -> 133.5 | AN12: =(2*PI()-4*$E$13)*$E$7 + 4*$E$12*$E$13 -> 0 | AO12: =(2*PI()-4*$K$13)*$K$7 + 4*$K$12*$K$13 -> 0 | AR12: =3*($E$12+$E$13) -> 480 | AS12: =3*($K$12+$K$13) -> 400.5
D13: - | J13: - | N13: S= | P13: =PI()*POWER($E$5,2)/4 -> 80424.77193 | Q13: =PI()*POWER($K$5,2)/4 -> 55990.24967 | T13: =2*SQRT(2)*$E$5*$E$6 - POWER($E$5,2) - POWER($E$6,2) -> -102400 | U13: =2*SQRT(2)*$K$5*$K$6 - POWER($K$5,2) - POWER($K$6,2) -> -71289 | X13: =2*(1+SQRT(2))*POWER(E12,2) -> 123607.7344 | Y13: =2*(1+SQRT(2))*POWER(K12,2) -> 86053.43532 | AB13: =$E$5*$E$6 - (4-PI())*POWER($E$7,2) -> 0 | AC13: =$K$5*$K$6 - (4-PI())*POWER($K$7,2) -> 0 | AF13: =2*($E$5/2-$E$7)*($E$6/2-$E$7) + 4*$E$7*SQRT( POWER($E$5/2-$E$7,2) + POWER($E$6/2-$E$7,2) ) + PI()*POWER($E$7,2) -> 0 | AG13: =2*($K$5/2-$K$7)*($K$6/2-$K$7) + 4*$K$7*SQRT( POWER($K$5/2-$K$7,2) + POWER($K$6/2-$K$7,2) ) + PI()*POWER($K$7,2) -> 0 | AJ13: =PI()*$E$5*$E$6/4 -> 0 | AK13: =PI()*$K$5*$K$6/4 -> 0 | AN13: =(PI()-2*$E$13)*POWER($E$7,2) + 2*$E$13*POWER($E$12,2) - 2*($E$12-$E$6/2)*($E$5/2-$E$7) -> -51200 | AO13: =(PI()-2*$K$13)*POWER($K$7,2) + 2*$K$13*POWER($K$12,2) - 2*($K$12-$K$6/2)*($K$5/2-$K$7) -> -35644.5 | AR13: =SQRT(3) * (4*$E$5*$E$6 - POWER($E$5,2) - POWER($E$6,2) ) / 4 -> -44340.50067 | AS13: =SQRT(3) * (4*$K$5*$K$6 - POWER($K$5,2) - POWER($K$6,2) ) / 4 -> -30869.04251
D14: - | J14: -
D15: - | J15: -
D16: - | J16: -
D19: Périmètre = | E19: =PI()*$E$5 -> 1005.309649 | J19: Périmètre = | K19: =PI()*$K$5 -> 838.8052385
D20: Surface = | E20: =PI()*POWER($E$5,2)/4 -> 80424.77193 | J20: Surface = | K20: =PI()*POWER($K$5,2)/4 -> 55990.24967
C28: Corroyage, K= | D28: =E20/K20 -> 1.436406739 | K28: densité
C29: Allongement = | D29: =E20/K20-1 -> 0.4364067388 | J29: titane (TA6V) | K29: 4.42
J30: acier | K30: 7.7
D31: entrée | E31: sortie | J31: superalliage (inco. 718) | K31: 8.23
C32: Longueur | D32: =5200 -> 5200 | E32: =D28*D32 -> 7469.315042 | F32: mm | J32: superalliage (XSH) | K32: 9.1
C34: Densité | D34: 8.19
C35: Volume | D35: =D32*E20/1000000000 -> 0.418208814 | F35: m3 | I35: Calcul mise au mille
C36: Poids | D36: =D35*D34*1000 -> 3425.130187 | F36: kg | I36: entrée | J36: sortie
D37: =D36/1000 -> 3.425130187 | F37: tonnes | I37: 7300 | J37: =12*580 -> 6960 | K37: kg/tonne
I38: =I37/J37*1000 -> 1048.850575 | K38: ‰

Sheet Calcul_Section_Kocks
C1: Diamètre initial = | D1: =20^2/19.81 -> 20.19182231 | E1: mm | G1: =IF(COUNTIF(D18:D37,"<1")>0,"WARNING : Corroyage < 1","") -> 
C2: Diamètre final = | D2: =12^2/11.89 -> 12.11101766 | E2: mm
G3: coeff. élargissement= | H3: 1.02 | O3: coeff. dilatation=
C4: Nb. total de cages Kocks | D4: 8 | O4: TA6V | P4: 10.5 | Q4: 10-6 K-1
C5: Nb. de cages ébauchage | D5: 1 | G5: coeff. ébauchage= | H5: 1.05 | O5: acier | P5: 12
C6: Nb. de cages finition | D6: 1 | G6: coeff. finition= | H6: 0.95
J7: =J8*0.000001*J9 -> 0.00945
C8: Corroyage total = | D8: =(D1/D2)^2 -> 2.779647706 | I8: coeff. dilatation= | J8: 10.5 | K8: 10-6 K-1
C9: Corroyage moyen = | D9: =POWER( D8 / (H5^D5 * H6^D6), 1/D4) -> 1.136670546 | I9: DT°c entre ambiante et laminage= | J9: 900 | K9: °C
A15: No. | B15: Type | C15: Facteur corroy. | D15: Corroy. allongt. | E15: (hot) | I15: (cold)
E16: Section | F16: h | G16: l | I16: Section | J16: h | K16: l
A17: 0 | C17: =IF(C18<>"",C18,1) * IF(C19<>"",C19,1) * IF(C20<>"",C20,1) * IF(C21<>"",C21,1) * IF(C22<>"",C22,1) * IF(C23<>"",C23,1) * IF(C24<>"",C24,1) * IF(C25<>"",C25,1) * IF(C26<>"",C26,1) * IF(C27<>"",C27,1) * IF(C28<>"",C28,1) * IF(C29<>"",C29,1) * IF(C30<>"",C30,1) * IF(C31<>"",C31,1) * IF(C32<>"",C32,1) * IF(C33<>"",C33,1) * IF(C34<>"",C34,1) * IF(C35<>"",C35,1) * IF(C36<>"",C36,1) * IF(C37<>"",C37,1) -> 0.9975 | D17: =POWER(D8/C17,1/D4) -> 1.136670546 | E17: =PI() * D1^2/4 -> 320.2144404 | F17: =D1 -> 20.19182231 | G17: =D1 -> 20.19182231 | I17: =IF($A17>$D$4,"", (1-$J$7)*E17 ) -> 317.1884139 | J17: =(1-$J$7)*F17 -> 20.00100959 | K17: =(1-J7)*G17 -> 20.00100959
A18: 1 | B18: =IF(A18<=$D$5,"ROUGH","") & IF(AND(A18>$D$5,A18<=$D$4-$D$6),"STD","") & IF(AND(A18>$D$4-$D$6,A18<=$D$4),"FINISH","") -> ROUGH | C18: =IF(A18<=$D$4, IF(B18="ROUGH",$H$5*($D$5-A18+1)/$D$5 + (1-($D$5-A18+1)/$D$5),0) + IF(B18="STD",1,0) + IF(B18="FINISH", $H$6*(A18-$D$4+$D$6)/$D$6 + (1-(A18-$D$4+$D$6)/$D$6),0), "") -> 1.05 | D18: =IF(A18<=$D$4, C18*$D$17, "") -> 1.193504073 | E18: =IF(A18<=$D$4,E17/D18,"") -> 268.2977356 | F18: =IF(A18>$D$4,"", IF(A18=$D$4, $D$2,2*G18 - SQRT( 3*G18^2 - 4*E18/SQRT(3) )) ) -> 15.63869731 | G18: =IF(A18>$D$4,"", IF(A18=$D$4, $D$2, $H$3*F17) ) -> 20.59565876 | I18: =IF(A18>$D$4,"", (1-$J$7)^2*E18 ) -> 263.2508681 | J18: =IF($A18>$D$4,"", (1-$J$7)*F18 ) -> 15.49091162 | K18: =IF($A18>$D$4,"", (1-$J$7)*G18 ) -> 20.40102978
A19: 2 | B19: =IF(A19<=$D$5,"ROUGH","") & IF(AND(A19>$D$5,A19<=$D$4-$D$6),"STD","") & IF(AND(A19>$D$4-$D$6,A19<=$D$4),"FINISH","") -> STD | C19: =IF(A19<=$D$4, IF(B19="ROUGH",$H$5*($D$5-A19+1)/$D$5 + (1-($D$5-A19+1)/$D$5),0) + IF(B19="STD",1,0) + IF(B19="FINISH", $H$6*(A19-$D$4+$D$6)/$D$6 + (1-(A19-$D$4+$D$6)/$D$6),0), "") -> 1 | D19: 1.136670546 | E19: =IF(A19<=$D$4,E18/D19,"") -> 236.038258 | F19: =IF(A19>$D$4,"", IF(A19=$D$4, $D$2,2*G19 - SQRT( 3*G19^2 - 4*E19/SQRT(3) )) ) -> 17.12995031 | G19: 15.95147125 | I19: =IF(A19>$D$4,"", (1-$J$7)^2*E19 ) -> 231.5982137 | J19: =IF($A19>$D$4,"", (1-$J$7)*F19 ) -> 16.96807228 | K19: 15.80072985
A20: 3 | B20: STD | C20: 1 | D20: 1.136670546 | E20: 207.6575827 | F20: 14.05717644 | G20: 17.47254932 | I20: 203.7513988 | J20: 13.92433612 | K20: 17.30743373
A21: 4 | B21: STD | C21: 1 | D21: 1.136670546 | E21: 182.689332 | F21: 14.71743801 | G21: 14.33831996 | I21: 179.2528182 | J21: 14.57835822 | K21: 14.20282284
A22: 5 | B22: STD | C22: 1 | D22: 1.136670546 | E22: 160.7232039 | F22: 12.56256309 | G22: 15.01178677 | I22: 157.6998883 | J22: 12.44384687 | K22: 14.86992539
A23: 6 | B23: STD | C23: 1 | D23: 1.136670546 | E23: 141.3982305 | F23: 12.74212177 | G23: 12.81381435 | I23: 138.7384312 | J23: 12.62170872 | K23: 12.69272381
A24: 7 | B24: STD | C24: 1 | D24: 1.136670546 | E24: 124.3968457 | F24: 11.17903637 | G24: 12.99696421 | I24: 122.0568543 | J24: 11.07339447 | K24: 12.87414289
A25: 8 | B25: FINISH | C25: 0.95 | D25: 1.079837019 | E25: 115.1996491 | F25: 12.11101766 | G25: 12.11101766 | I25: 113.0326634 | J25: 11.99656854 | K25: 11.99656854
A26: 9
A27: 10 | F27: =IF(A27>$D$4,"", IF(A27=$D$4, $D$2,2*G27 - SQRT( 3*G27^2 - 4*E27/SQRT(3) )) ) -> 
A28: 11
A29: 12
A30: 13
A31: 14
A32: 15
A33: 16
A34: 17
A35: 18
A36: 19
A37: 20

Sheet Laminage-vitesse-point neutre
Q1: i | R1: z | S1: h(z) | T1: vz(z) | U1: vy(z) | V1: v(z) | W1: dz= | X1: =R2-R3 -> 1.216241029 | Y1: int1 | Z1: int2
Q2: 0 | R2: =-Q2/100 * $N$11 -> 0 | S2: =$M$7+$I$7/2-SQRT($I$7^2/4-R2^2) -> 105 | T2: =$N$19 + $N$19*($J$11-1)*SQRT(1-(R2/$N$11)^2) -> 5724.689691 | U2: =R2*T2/SQRT($I$7^2/4-R2^2) -> 0 | V2: =SQRT(T2^2+U2^2) -> 5724.689691 | W2: =SQRT(1-(R2/$N$11)^2)/SQRT(1-(2*R2/$I$7)^2) -> 1 | X2: =SQRT(1-(R2/$N$11)^2) -> 1 | Y2: =SUM(Y3:Y102) -> 65.96571507 | Z2: =SUM(Z3:Z102) -> 64.55169982
Q3: 1 | R3: =-Q3/100 * $N$11 -> -1.216241029 | S3: =$M$7+$I$7/2-SQRT($I$7^2/4-R3^2) -> 105.0024654 | T3: =$N$19 + $N$19*($J$11-1)*SQRT(1-(R3/$N$11)^2) -> 5724.656696 | U3: =R3*T3/SQRT($I$7^2/4-R3^2) -> -23.20873189 | V3: =SQRT(T3^2+U3^2) -> 5724.703742 | W3: 0.9999582165 | X3: =SQRT(1-(R3/$N$11)^2) -> 0.9999499987 | Y3: =(W3+W2)/(2*(R2-R3)) -> 0.8221882707 | Z3: =(X3+X2)/(2*(R2-R3)) -> 0.8221848924
L4: Section | M4: Hauteur | N4: Largeur | Q4: 2 | R4: -2.432482057 | S4: 105.0098618 | T4: 5724.557702 | U4: -46.41780553 | V4: 5724.745889 | W4: 0.9998328471 | X4: 0.99979998 | Y4: =(W4+W3)/(2*(R3-R4)) -> 0.8221195537 | Z4: =(X4+X3)/(2*(R3-R4)) -> 0.8221026637
L5: mm² | M5: mm | N5: mm | Q5: 3 | R5: -3.648723086 | S5: 105.0221895 | T5: 5724.392679 | U5: -69.62756241 | V5: 5724.816115 | W5: 0.9996238357 | X5: 0.9995498987 | Y5: 0.8219820889 | Z5: 0.8219381814
H6: vitesse rotation= | I6: 180 | J6: RPM | K6: ENTREE | L6: 9384.96 | M6: 130.76 | N6: 123.872 | Q6: 4 | R6: -4.864964115 | S6: 105.0394491 | T6: 5724.161578 | U6: -92.8383435 | V6: 5724.914386 | W6: 0.9993310886 | X6: 0.9991996797 | Y6: 0.8217758146 | Z6: 0.8216913964
H7: diamètre cylindre= | I7: 600 | J7: mm | K7: SORTIE | L7: 8303.17 | M7: 105 | N7: 130.85 | Q7: 5 | R7: -6.081205144 | S7: 105.0616414 | T7: 5723.864329 | U7: -116.0504891 | V7: 5725.040661 | W7: 0.9989544744 | X7: 0.9987492178 | Y7: 0.8215006383 | Z7: 0.8213622343
Q8: 6 | R8: -7.297446172 | S8: 105.0887677 | T8: 5723.500842 | U8: -139.2643383 | V8: 5725.194883 | W8: 0.9984938236 | X8: 0.9981983771 | Y8: 0.8211564364 | Z8: 0.820950596
Q9: 7 | R9: -8.513687201 | S9: 105.1208291 | T9: 5723.071008 | U9: -162.4802291 | V9: 5725.376983 | W9: 0.997948929 | X9: 0.9975469914 | Y9: 0.820743054 | Z9: 0.8204563575
Q10: 8 | R10: -9.72992823 | S10: 105.1578274 | T10: 5722.574697 | U10: -185.698498 | V10: 5725.586878 | W10: 0.9973195446 | X10: 0.9967948636 | Y10: 0.8202603047 | Z10: 0.8198793692
I11: Corroyage, K= | J11: =L6/L7 -> 1.130286385 | M11: Longueur du contact, dl= | N11: =SQRT(M6-M7) * SQRT(I7-M6+M7) -> 121.6241029 | O11: mm | Q11: 9 | R11: -10.94616926 | S11: 105.1997642 | T11: 5722.011758 | U11: -208.9194795 | V11: 5725.824474 | W11: 0.9966053857 | X11: 0.9959417654 | Y11: 0.8197079703 | Z11: 0.8192194564
I12: Allongement = | J12: =L6/L7 - 1 -> 0.1302863846 | M12: angle du cylindre sous contact, theta_M= | N12: =ATAN(N11/(I7/2-M6+M7)) -> 0.4174313191 | O12: rad | Q12: 10 | R12: -12.16241029 | S12: 105.2466418 | T12: 5721.382019 | U12: -232.143506 | V12: 5726.089662 | W12: 0.9958061284 | X12: 0.9949874371 | Y12: 0.8190858008 | Z12: 0.8184764185
I13: Déformation, ε=ln(K)= | J13: =LN(J11) -> 0.1224710383 | N13: =N12*180/PI() -> 23.91705282 | O13: deg | Q13: 11 | R13: -13.37865132 | S13: 105.2984623 | T13: 5720.685289 | U13: -255.3709079 | V13: 5726.38232 | W13: 0.994921409 | X13: 0.9939315872 | Y13: 0.8183935134 | Z13: 0.8176500288
Q14: 12 | R14: -14.59489234 | S14: 105.3552284 | T14: 5719.921353 | U14: -278.6020125 | V14: 5726.702312 | W14: 0.9939508237 | X14: 0.9927738917 | Y14: 0.8176307926 | Z14: 0.8167400342
I15: Déformation Adlam v1.5, ε= | J15: =2/SQRT(3) * SQRT( LN(M7/M6)^2 + LN(N7/N6)^2 + LN(L6/L7)^2 ) -> 0.2969630419 | M15: Vitesse linéaire du cylindre v_cyl= | N15: =I7 * (I6*PI()/60) -> 5654.866776 | O15: m/s | Q15: 13 | R15: -15.81113337 | S15: 105.416943 | T15: 5719.089977 | U15: -301.8371442 | V15: 5727.049487 | W15: 0.9928939276 | X15: 0.9915139938 | Y15: 0.8167972895 | Z15: 0.815746155
Q16: 14 | R16: -17.0273744 | S16: 105.4836089 | T16: 5718.190902 | U16: -325.0766245 | V16: 5727.423679 | W16: 0.9917502345 | X16: 0.9901515036 | Y16: 0.8158926213 | Z16: 0.8146680841
Q17: 15 | R17: -18.24361543 | S17: 105.5552296 | T17: 5717.223849 | U17: -348.3207708 | V17: 5727.824709 | W17: 0.9905192154 | X17: 0.9886859967 | Y17: 0.8149163706 | Z17: 0.8135054868
M18: vitesse rotation= | N18: =I6*PI()/30 -> 18.84955592 | O18: rad.s-1 | Q18: 16 | R18: -19.45985646 | S18: 105.6318087 | T18: 5716.188515 | U18: -371.5698969 | V18: 5728.252379 | W18: 0.9892002987 | X18: 0.9871170143 | Y18: 0.8138680851 | Z18: 0.812258
M19: Vitesse entrée, v0= | N19: =3*I7*N18*N11 / (3*I7*N12 +4*(J11-1)*N11) -> 5064.813457 | O19: mm/s | Q19: 17 | R19: -20.67609749 | S19: 105.7133498 | T19: 5715.084573 | U19: -394.8243121 | V19: 5728.706479 | W19: 0.9877928685 | X19: 0.9854440623 | Y19: 0.8127472764 | Z19: 0.8109252319
M20: Vitesse sortie, v1= | N20: =J11*N19 -> 5724.689691 | O20: mm/s | Q20: 18 | R20: -21.89233852 | S20: 105.7998571 | T20: 5713.911675 | U20: -418.0843212 | V20: 5729.186777 | W20: 0.9862962637 | X20: 0.9836666102 | Y20: 0.8115534197 | Z20: 0.8095067614
Q21: 19 | R21: -23.10857955 | S21: 105.8913349 | T21: 5712.669445 | U21: -441.3502238 | V21: 5729.693029 | W21: 0.9847097775 | X21: 0.9817840903 | Y21: 0.8102859527 | Z21: 0.8080021369
Q22: 20 | R22: -24.32482057 | S22: 105.9877877 | T22: 5711.357483 | U22: -464.6223141 | V22: 5730.224969 | W22: 0.9830326557 | X22: 0.9797958971 | Y22: 0.8089442745 | Z22: 0.8064108762
M23: z_N= | N23: =N11*SQRT(1-POWER(I7*N18/(2*N19)-1,2)) -> 120.7959197 | Q23: 21 | R23: -25.5410616 | S23: 106.0892204 | T23: 5709.975365 | U23: -487.9008805 | V23: 5730.782315 | W23: 0.9812640954 | X23: 0.9777013859 | Y23: 0.8075277452 | Z23: 0.8047324653
Q24: 22 | R24: -26.75730263 | S24: 106.195638 | T24: 5708.522638 | U24: -511.1862049 | V24: 5731.364763 | W24: 0.9794032443 | X24: 0.9754998719 | Y24: 0.8060356843 | Z24: 0.8029663577
M25: z= | N25: =N23 -> 120.7959197 | Q25: 23 | R25: -27.97354366 | S25: 106.3070459 | T25: 5706.998824 | U25: -534.4785625 | V25: 5731.971991 | W25: 0.9774491986 | X25: 0.9731906288 | Y25: 0.8044673698 | Z25: 0.8011119731
M26: v(z)= | N26: =N19/SQRT(1-(2*N25/I7)^2) * (1+(J11-1)*SQRT(1-(N25/N11)^2)) -> 5617.167616 | Q26: 24 | R26: -29.18978469 | S26: 106.4234496 | T26: 5705.403414 | U26: -557.7782213 | V26: 5732.603655 | W26: 0.9754010017 | X26: 0.970772888 | Y26: 0.802822037 | Z26: 0.7991686972
Q27: 25 | R27: -30.40602572 | S27: 106.544855 | T27: 5703.735873 | U27: -581.0854412 | V27: 5733.259387 | W27: 0.9732576429 | X27: 0.9682458366 | Y27: 0.801098877 | Z27: 0.7971358796
Q28: 26 | R28: -31.62226675 | S28: 106.6712682 | T28: 5701.995634 | U28: -604.400474 | V28: 5733.938798 | W28: 0.9710180549 | X28: 0.9656086164 | Y28: 0.7992970356 | Z28: 0.7950128335
Q29: 27 | R29: -32.83850778 | S29: 106.8026955 | T29: 5700.1821 | U29: -627.7235622 | V29: 5734.641475 | W29: 0.9686811125 | X29: 0.9628603222 | Y29: 0.7974156115 | Z29: 0.7927988338
B30: Hypothèse : | Q30: 28 | R30: -34.0547488 | S30: 106.9391437 | T30: 5698.294641 | U30: -651.0549389 | V30: 5735.366976 | W30: 0.9662456303 | X30: 0.96 | Y30: 0.7954536548 | Z30: 0.7904931164
Q31: 29 | R31: -35.27098983 | S31: 107.0806195 | T31: 5696.332595 | U31: -674.3948269 | V31: 5736.114837 | W31: 0.9637103606 | X31: 0.9570266454 | Y31: 0.7934101651 | Z31: 0.788094876
Q32: 30 | R32: -36.48723086 | S32: 107.2271302 | T32: 5694.295264 | U32: -697.743438 | V32: 5736.884561 | W32: 0.9610739911 | X32: 0.9539392014 | Y32: 0.7912840902 | Z32: 0.7856032652
Q33: 31 | R33: -37.70347189 | S33: 107.3786832 | T33: 5692.181915 | U33: -721.100972 | V33: 5737.675624 | W33: 0.9583351423 | X33: 0.9507365566 | Y33: 0.7890743233 | Z33: 0.7830173925
B34: Alors au contact du cylindre : | Q34: 32 | R34: -38.91971292 | S34: 107.5352862 | T34: 5689.991777 | U34: -744.4676165 | V34: 5738.487471 | W34: =SQRT(1-(R34/$N$11)^2)/SQRT(1-(2*R34/$I$7)^2) -> 0.9554923647 | X34: 0.9474175426 | Y34: 0.7867797014 | Z34: 0.7803363208
Q35: 33 | R35: -40.13595395 | S35: 107.6969472 | T35: 5687.724039 | U35: -767.8435453 | V35: 5739.319511 | W35: 0.9525441362 | X35: 0.943980932 | Y35: 0.784399003 | Z35: 0.7775590651
Q36: 34 | R36: -41.35219498 | S36: 107.8636744 | T36: 5685.377851 | U36: -791.2289182 | V36: 5740.171122 | W36: 0.9494888589 | X36: 0.9404254356 | Y36: 0.7819309455 | Z36: 0.7746845909
Q37: 35 | R37: -42.56843601 | S37: 108.0354764 | T37: 5682.952321 | U37: -814.6238793 | V37: 5741.041643 | W37: 0.9463248558 | X37: 0.9367496998 | Y37: 0.7793741824 | Z37: 0.7717118117
B38: Vitesse au contact du cylindre : | Q38: 36 | R38: -43.78467703 | S38: 108.212362 | T38: 5680.446509 | U38: -838.0285564 | V38: 5741.930372 | W38: 0.9430503671 | X38: 0.9329523032 | Y38: 0.7767273009 | Z38: 0.7686395865
B39: (on néglige v_x) | Q39: 37 | R39: -45.00091806 | S39: 108.3943403 | T39: 5677.859432 | U39: -861.4430598 | V39: 5742.83657 | W39: 0.9396635468 | X39: 0.929031754 | Y39: 0.7739888186 | Z39: 0.765466718
Q40: 38 | R40: -46.21715909 | S40: 108.5814206 | T40: 5675.190056 | U40: -884.8674811 | V40: 5743.759451 | W40: 0.9361624581 | X40: 0.9249864864 | Y40: 0.7711571805 | Z40: 0.762191949
Q41: 39 | R41: -47.43340012 | S41: 108.7736127 | T41: 5672.437296 | U41: -908.3018915 | V41: 5744.698182 | W41: 0.9325450695 | X41: 0.9208148565 | Y41: 0.768230755 | Z41: 0.7588139601
B42: On suppose que | E42: => | Q42: 40 | R42: -48.64964115 | S42: 108.9709264 | T42: 5669.600015 | U42: -931.7463411 | V42: 5745.651884 | W42: 0.9288092496 | X42: 0.916515139 | Y42: 0.765207831 | Z42: 0.7553313661
Q43: 41 | R43: -49.86588218 | S43: 109.1733721 | T43: 5666.677016 | U43: -955.2008567 | V43: 5746.619622 | W43: 0.9249527624 | X43: 0.9120855223 | Y43: 0.7620866128 | Z43: 0.751742713
Q44: 42 | R44: -51.08212321 | S44: 109.3809602 | T44: 5663.667045 | U44: -978.6654405 | V44: 5747.600407 | W44: 0.9209732617 | X44: 0.9075241044 | Y44: 0.7588652169 | Z44: 0.7480464742
Q45: 43 | R45: -52.29836424 | S45: 109.5937017 | T45: 5660.568783 | U45: -1002.140068 | V45: 5748.59319 | W45: 0.9168682853 | X45: 0.9028288874 | Y45: 0.7555416663 | Z45: 0.7442410464
Q46: 44 | R46: -53.51460526 | S46: 109.8116076 | T46: 5657.380845 | U46: -1025.624688 | V46: 5749.596858 | W46: 0.9126352484 | X46: 0.8979977728 | Y46: 0.7521138863 | Z46: 0.7403247456
C47: On suppose que 2z/Ø << 1, alors | Q47: 45 | R47: -54.73084629 | S47: 110.0346894 | T47: 5654.101776 | U47: -1049.119215 | V47: 5750.610231 | W47: 0.9082714369 | X47: 0.893028555 | Y47: 0.7485796985 | Z47: 0.7362958022
Q48: 46 | R48: -55.94708732 | S48: 110.2629589 | T48: 5650.730046 | U48: -1072.623536 | V48: 5751.632056 | W48: 0.9037739998 | X48: 0.8879189152 | Y48: 0.7449368151 | Z48: 0.7321523564
Q49: 47 | R49: -57.16332835 | S49: 110.496428 | T49: 5647.264046 | U49: -1096.1375 | V49: 5752.661004 | W49: 0.8991399416 | X49: 0.8826664149 | Y49: 0.7411828325 | Z49: 0.7278924523
Q50: 48 | R50: -58.37956938 | S50: 110.7351093 | T50: 5643.702083 | U50: -1119.660917 | V50: 5753.695662 | W50: 0.8943661128 | X50: 0.877268488 | Y50: 0.7373152245 | Z50: 0.7235140327
Q51: 49 | R51: -59.59581041 | S51: 110.9790154 | T51: 5640.042373 | U51: -1143.193559 | V51: 5754.734527 | W51: 0.8894492011 | X51: 0.8717224329 | Y51: 0.7333313347 | Z51: 0.7190149319
Q52: 50 | R52: -60.81205144 | S52: 111.2281593 | T52: 5636.283039 | U52: -1166.735155 | V52: 5755.776004 | W52: 0.8843857209 | X52: 0.8660254038 | Y52: 0.7292283684 | Z52: 0.7143928693
Q53: 51 | R53: -62.02829247 | S53: 111.4825543 | T53: 5632.422101 | U53: -1190.285383 | V53: 5756.818394 | W53: 0.8791720017 | X53: 0.8601744009 | Y53: 0.7250033838 | Z53: 0.7096454419
Q54: 52 | R54: -63.24453349 | S54: 111.7422141 | T54: 5628.457472 | U54: -1213.843875 | V54: 5757.859886 | W54: 0.8738041763 | X54: 0.8541662602 | Y54: 0.720653282 | Z54: 0.7047701157
Q55: 53 | R55: -64.46077452 | S55: 112.0071527 | T55: 5624.386947 | U55: -1237.410204 | V55: 5758.898553 | W55: 0.8682781673 | X55: 0.8479976415 | Y55: 0.716174797 | Z55: 0.6997642167
Q56: 54 | R56: -65.67701555 | S56: 112.2773845 | T56: 5620.208198 | U56: -1260.983886 | V56: 5759.932339 | W56: 0.8625896722 | X56: 0.8416650165 | Y56: 0.7115644838 | Z56: 0.6946249214
Q57: 55 | R57: -66.89325658 | S57: 112.5529241 | T57: 5615.918764 | U57: -1284.564373 | V57: 5760.959051 | W57: 0.8567341476 | X57: 0.8351646544 | Y57: 0.7068187058 | Z57: 0.6893492455
Q58: 56 | R58: -68.10949761 | S58: 112.8337865 | T58: 5611.516038 | U58: -1308.151047 | V58: 5761.976346 | W58: 0.8507067916 | X58: 0.8284926071 | Y58: 0.7019336212 | Z58: 0.6839340321
Q59: 57 | R59: -69.32573864 | S59: 113.119987 | T59: 5606.997262 | U59: -1331.743215 | V59: 5762.981718 | W59: 0.8445025239 | X59: 0.8216446921 | Y59: 0.6969051674 | Z59: 0.6783759387
Q60: 58 | R60: -70.54197967 | S60: 113.4115415 | T60: 5602.359508 | U60: -1355.3401 | V60: 5763.972488 | W60: 0.838115965 | X60: 0.8146164742 | Y60: 0.6917290443 | Z60: 0.6726714227
Q61: 59 | R61: -71.7582207 | S61: 113.708466 | T61: 5597.599669 | U61: -1378.94084 | V61: 5764.945784 | W61: 0.8315414121 | X61: 0.807403245 | Y61: 0.686400696 | Z61: 0.666816725
Q62: 60 | R62: -72.97446172 | S62: 114.0107769 | T62: 5592.714444 | U62: -1402.544472 | V62: 5765.898529 | W62: 0.8247728128 | X62: 0.8 | Y62: 0.6809152897 | Z62: 0.6608078526
Q63: 61 | R63: -74.19070275 | S63: 114.3184911 | T63: 5587.700317 | U63: -1426.149929 | V63: 5766.827417 | W63: 0.8178037362 | X63: 0.7924014134 | Y63: 0.6752676937 | Z63: 0.6546405588
Q64: 62 | R64: -75.40694378 | S64: 114.6316256 | T64: 5582.553544 | U64: -1449.756029 | V64: 5767.728896 | W64: 0.8106273401 | X64: 0.7846018098 | Y64: 0.6694524514 | Z64: 0.6483103209
Q65: 63 | R65: -76.62318481 | S65: 114.9501982 | T65: 5577.270128 | U65: -1473.361461 | V65: 5768.599143 | W65: 0.8032363349 | X65: 0.7765951326 | Y65: 0.663463753 | Z65: 0.6418123158
Q66: 64 | R66: -77.83942584 | S66: 115.2742266 | T66: 5571.845798 | U66: -1496.964777 | V66: 5769.434039 | W66: =SQRT(1-(R66/$N$11)^2)/SQRT(1-(2*R66/$I$7)^2) -> 0.7956229431 | X66: 0.7683749085 | Y66: 0.6572954046 | Z66: 0.6351413925
Q67: 65 | R67: =-Q67/100 * $N$11 -> -79.05566687 | S67: =$M$7+$I$7/2-SQRT($I$7^2/4-R67^2) -> 115.6037292 | T67: =$N$19 + $N$19*($J$11-1)*SQRT(1-(R67/$N$11)^2) -> 5566.27598 | U67: =R67*T67/SQRT($I$7^2/4-R67^2) -> -1520.564375 | V67: =SQRT(T67^2+U67^2) -> 5770.229138 | W67: 0.7877788532 | X67: =SQRT(1-(R67/$N$11)^2) -> 0.7599342077 | Y67: 0.6509407917 | Z67: 0.6282920408
Q68: 66 | R68: -80.2719079 | S68: 115.9387248 | T68: 5560.555771 | U68: -1544.158485 | V68: 5770.979631 | W68: 0.7796951685 | X68: 0.7512655988 | Y68: =(W68+W67)/(2*(R67-R68)) -> 0.6443928402 | Z68: =(X68+X67)/(2*(R67-R68)) -> 0.621258357
Q69: 67 | R69: -81.48814893 | S69: 116.2792325 | T69: 5554.679902 | U69: -1567.745151 | V69: 5771.680316 | W69: 0.771362349 | X69: 0.7423610981 | Y69: 0.6376439706 | Z69: 0.6140340038
Q70: 68 | R70: -82.70438995 | S70: 116.6252718 | T70: 5548.642703 | U70: -1591.32221 | V70: 5772.325547 | W70: 0.7627701453 | X70: 0.7332121112 | Y70: 0.6306860475 | Z70: 0.6066121659
Q71: 69 | R71: -83.92063098 | S71: 116.9768626 | T71: 5542.438056 | U71: -1614.887273 | V71: 5772.909189 | W71: 0.7539075232 | X71: 0.7238093672 | Y71: 0.623510321 | Z71: 0.5989854987
Q72: 70 | R72: -85.13687201 | S72: 117.3340253 | T72: 5536.059346 | U72: -1638.437693 | V72: 5773.424561 | W72: 0.7447625777 | X72: 0.7141428429 | Y72: 0.6161073609 | Z72: 0.5911460706
Q73: 71 | R73: -86.35311304 | S73: 117.6967806 | T73: 5529.499406 | U73: -1661.970542 | V73: 5773.86437 | W73: 0.7353224344 | X73: 0.7042016757 | Y73: 0.6084669803 | Z73: 0.5830852952
Q74: 72 | R74: -87.56935407 | S74: 118.0651499 | T74: 5522.750448 | U74: -1685.482573 | V74: 5774.220641 | W74: 0.7255731354 | X74: 0.6939740629 | Y74: 0.6005781483 | Z74: 0.5747938548
Q75: 73 | R75: -88.7855951 | S75: 118.4391546 | T75: 5515.803985 | U75: -1708.970179 | V75: 5774.484624 | W75: 0.7154995067 | X75: 0.683447145 | Y75: 0.5924288887 | Z75: 0.5662616107
Q76: 74 | R76: -90.00183613 | S76: 118.818817 | T76: 5508.650744 | U76: -1732.429353 | V76: 5774.646698 | W76: 0.7050850044 | X76: 0.6726068688 | Y76: 0.5840061622 | Z76: 0.557477499
Q77: 75 | R77: -91.21807716 | S77: 119.2041596 | T77: 5501.280559 | U77: -1755.855627 | V77: 5774.69625 | W77: 0.6943115339 | X77: 0.6614378278 | Y77: 0.5752957289 | Z77: 0.5484294088
Q78: 76 | R78: -92.43431818 | S78: 119.5952053 | T78: 5493.682246 | U78: -1779.244015 | V78: 5774.621536 | W78: 0.6831592368 | X78: 0.6499230724 | Y78: 0.5662819861 | Z78: 0.5391040382
Q79: 77 | R79: -93.65055921 | S79: 119.9919777 | T79: 5485.843453 | U79: -1802.588934 | V79: 5774.409516 | W79: 0.6716062382 | X79: 0.6380438856 | Y79: 0.5569477772 | Z79: 0.5294867249
Q80: 78 | R80: -94.86680024 | S80: 120.3945007 | T80: 5477.750486 | U80: -1825.884118 | V80: 5774.045652 | W80: 0.659628344 | X80: 0.6257795139 | Y80: 0.5472741631 | Z80: 0.5195612422
Q81: 79 | R81: -96.08304127 | S81: 120.8027988 | T81: 5469.388091 | U81: -1849.122509 | V81: 5773.513674 | W81: 0.6471986771 | X81: 0.6131068422 | Y81: 0.5372401482 | Z81: 0.5093095558
Q82: 80 | R82: -97.2992823 | S82: 121.2168968 | T82: 5460.739197 | U82: -1872.296126 | V82: 5772.795281 | W82: 0.6342872355 | X82: 0.6 | Y82: 0.5268223495 | Z82: 0.4987115274
Q83: 81 | R83: -98.51552333 | S83: 121.6368202 | T83: 5451.784595 | U83: -1895.395911 | V83: 5771.869795 | W83: 0.6208603498 | X83: 0.5864298765 | Y83: 0.5159945914 | Z83: 0.4877445541
Q84: 82 | R84: -99.73176436 | S84: 122.0625949 | T84: 5442.502541 | U84: -1918.411533 | V84: 5770.71371 | W84: 0.6068800137 | X84: 0.5723635209 | Y84: 0.5047274079 | Z84: 0.4763831222
Q85: 83 | R85: -100.9480054 | S85: 122.4942475 | T85: 5432.868262 | U85: -1941.33114 | V85: 5769.300144 | W85: 0.5923030441 | X85: 0.5577633907 | Y85: 0.4929874217 | Z85: 0.4645982518
Q86: 84 | R86: -102.1642464 | S86: 122.9318048 | T86: 5422.853326 | U86: -1964.141058 | V86: 5767.598139 | W86: 0.5770800195 | X86: 0.5425863987 | Y86: 0.4807365629 | Z86: 0.4523567958
Q87: 85 | R87: -103.3804874 | S87: 123.3752944 | T87: 5412.424833 | U87: -1986.825397 | V87: 5765.571761 | W87: 0.5611539156 | X87: 0.5267826876 | Y87: 0.4679310713 | Z87: 0.4396205444
Q88: 86 | R88: -104.5967285 | S88: 123.8247443 | T88: 5401.544361 | U88: -2009.365538 | V88: 5763.178928 | W88: 0.5444583291 | X88: 0.5102940329 | Y88: 0.4545202055 | Z88: 0.4263450648
Q89: 87 | R89: -105.8129695 | S89: 124.2801833 | T89: 5390.16657 | U89: -2031.739467 | V89: 5760.369859 | W89: 0.5269151219 | X89: 0.4930517214 | Y89: 0.4404445441 | Z89: 0.4124781727
Q90: 88 | R90: -107.0292105 | S90: 124.7416405 | T90: 5378.237302 | U90: -2053.920866 | V90: 5757.084974 | W90: 0.5084312392 | X90: 0.4749736835 | Y90: 0.4256337094 | Z90: 0.3979578809
Q91: 89 | R91: -108.2454516 | S91: 125.2091456 | T91: 5365.69097 | U91: -2075.877867 | V91: 5753.251994 | W91: 0.4888943124 | X91: 0.4559605246 | Y91: 0.410003251 | Z91: 0.3827095888
Q92: 90 | R92: -109.4616926 | S92: 125.682729 | T92: 5352.446839 | U92: -2097.571297 | V92: 5748.781828 | W92: 0.4681664254 | X92: 0.4358898944 | Y92: 0.3934502764 | Z92: 0.3666421367
Q93: 91 | R93: -110.6779336 | S93: 126.1624218 | T93: 5338.403586 | U93: -2118.952121 | V93: 5743.562565 | W93: 0.446075007 | X93: 0.4146082488 | Y93: 0.3758471433 | Z93: 0.3496421035
Q94: 92 | R94: -111.8941746 | S94: 126.6482555 | T94: 5323.431067 | U94: -2139.95758 | V94: 5737.450372 | W94: 0.4223990328 | X94: 0.3919183588 | Y94: 0.3570320435 | Z94: 0.3315652854
Q95: 93 | R95: -113.1104157 | S95: 127.1402622 | T95: 5307.357248 | U95: -2160.505114 | V95: 5730.255082 | W95: 0.3968471884 | X95: 0.367559519 | Y95: 0.3367943532 | Z95: 0.3122234244
Q96: 94 | R96: -114.3266567 | S96: 127.638475 | T96: 5289.946363 | U96: -2180.482249 | V96: 5721.71612 | W96: 0.3690213797 | X96: 0.3411744422 | Y96: 0.3148506546 | Z96: 0.2913624621
Q97: 95 | R97: -115.5428977 | S97: 128.1429272 | T97: 5270.859745 | U97: -2199.728554 | V97: 5711.459372 | W97: 0.3383513703 | X97: 0.3122498999 | Y97: 0.2908028645 | Z97: 0.268624527
Q98: 96 | R98: -116.7591388 | S98: 128.653653 | T98: 5249.578802 | U98: -2218.000369 | V98: 5698.912461 | W98: 0.3039663846 | X98: 0.28 | Y98: 0.2640585787 | Z98: 0.2434755472
Q99: 97 | R99: -117.9753798 | S99: 129.1706873 | T99: 5225.232613 | U99: -2234.892281 | V99: 5683.115287 | W99: 0.2644079919 | X99: 0.2431049156 | Y99: 0.2336602544 | Z99: 0.2150498558
Q100: 98 | R100: -119.1916208 | S100: 129.6940656 | T100: 5196.127169 | U100: -2249.623934 | V100: 5662.203229 | W100: 0.2168469283 | X100: 0.1989974874 | Y100: 0.1978452087 | Z100: 0.1817495022
Q101: 99 | R101: -120.4078618 | S101: 130.2238242 | T101: 5157.900455 | U101: -2260.209654 | V101: 5631.383914 | W101: 0.1540170206 | X101: 0.1410673598 | Y101: 0.1524631797 | Z101: 0.139801585
Q102: 100 | R102: -121.6241029 | S102: 130.76 | T102: 5064.813457 | U102: -2246.220073 | V102: 5540.563145 | W102: 0 | X102: 0 | Y102: 0.06331681672 | Z102: 0.05799317588

Sheet ASTM E112
